lending/lending_fUSD_20240509
["ID","MTS","AMOUNT","RATE_DAILY","PERIOD"]
[326738740,1715291443496,-150.77,0.00030289,2]
[326738741,1715291443507,-150.77,0.00030289,2]
[326738742,1715291443517,-150.77,0.00030289,2]
[326738743,1715291443527,-150.77,0.00030289,2]
[326738744,1715291443537,-150.77,0.00030289,2]
[326738745,1715291443548,-150.77,0.00030289,2]
[326738746,1715291443558,-150.77,0.00030289,2]
[326738747,1715291443568,-150.77,0.00030289,2]
[326738748,1715291443577,-150.77,0.00030289,2]
[326738749,1715291443587,-150.77,0.00030289,2]
[326738750,1715291443596,-5902.49504914,0.00030299,4]
[326738751,1715291443611,-1000.0094664,0.00030299,4]
[326738752,1715291443624,-2363.57313408,0.00030299,4]
[326738753,1715291443635,-120.92235038,0.00030299,4]
[326738754,1715291443647,-320.4887496,0.00030299,30]
[326738790,1715291444529,-227.56177762,0.00012999,2]
[326738791,1715291444538,-3024.88433628,0.00012999,2]
[326738792,1715291444548,-201.93466958,0.00024931,2]
[326738793,1715291444557,-150.0,0.00028946,7]
[326738794,1715291444566,-12431.21513624,0.00030299,30]
[326738812,1715291445996,-356.85385929,0.00012999,2]
[326738815,1715291446005,-247.07302368,0.00012999,2]
[326738818,1715291446017,-51.24356256,0.00012999,2]
[326738821,1715291446027,-493.61586269,0.00012999,2]
[326738824,1715291446038,-339.85302779,0.00012999,2]
[326738827,1715291446047,-262.08414909,0.00030299,30]
[326738830,1715291446059,-29360.71257319,0.00030299,30]
[326738835,1715291446310,-298.31787138,0.00030299,30]
[326738836,1715291446322,-36262.55579511,0.00030299,30]
[326738837,1715291446333,-259935.90153141,0.00030299,30]
[326738838,1715291446345,-87930.27640336,0.00030299,30]
[326738842,1715291874696,579.21380086,0.00011697,2]
[326738843,1715291908457,361.66236523,0.00011697,2]
[326738844,1715291908832,336.75213487,0.00011697,2]
[326738859,1715292296900,-155.0,0.0001178,2]
[326738860,1715292296926,-536.95226347,0.0001178,2]
[326738861,1715292296950,-155.0,0.00011781,2]
[326738862,1715292296974,-535.07006962,0.00011781,2]
[326738863,1715292296998,-155.0,0.00011781,2]
[326738864,1715292297021,-1852.0,0.00011789,2]
[326738865,1715292297045,-150.0,0.000119,2]
[326738866,1715292362495,150.0,0.000119,2]
[326738867,1715292447889,688.79096572,0.00011801,2]
[326738869,1715292484181,363.90234263,0.00011899,2]
[326738879,1715292631991,-370.68594693,0.000119,2]
[326738881,1715292632001,-256.31405307,0.00011901,2]
[326738882,1715292632012,-9832.97397969,0.00011901,2]
[326738883,1715292632023,-1652.31001679,0.00011901,2]
[326738885,1715292632035,-2514.71600352,0.00011901,2]
[326738886,1715292632191,-1460.90154693,0.00011901,2]
[326738887,1715292632200,-788.09534808,0.00017232,2]
[326738888,1715292632211,-2236.7889882,0.00017232,2]
[326738889,1715292632220,-262.75159511,0.00017233,2]
[326738890,1715292632229,-999.48318595,0.00017233,2]
[326738891,1715292632241,-3272.68375192,0.00017233,2]
[326738892,1715292632250,-2325.82841742,0.00017234,2]
[326738893,1715292632260,-207.15813411,0.00017234,2]
[326738894,1715292632269,-2106.50964919,0.00017256,2]
[326738895,1715292632278,-499.99,0.00017256,2]
[326738896,1715292632287,-1240.10044682,0.00017257,2]
[326738897,1715292632296,-155.27478174,0.00017257,2]
[326738898,1715292632306,-1066.94921335,0.00017258,2]
[326738899,1715292632315,-537.88108423,0.00017258,2]
[326738900,1715292632324,-150.99,0.00017258,2]
[326738901,1715292632333,-219.61788122,0.00017259,2]
[326738902,1715292632345,-363.2425254,0.00017259,2]
[326738903,1715292632357,-1825.97372394,0.00017259,2]
[326738904,1715292632365,-10.80027452,0.00019178,2]
[326738906,1715292632377,-139.58972548,0.00019178,2]
[326738908,1715292632386,-159.03,0.00019178,2]
[326738910,1715292632396,-2061.0,0.000202,2]
[326738912,1715292632405,-1494.42027492,0.00023353,2]
[326738914,1715292632416,-505.57972508,0.00023353,2]
[326738915,1715292632425,-200.0,0.00023376,2]
[326738916,1715292632434,-163.39,0.0002379,2]
[326738917,1715292632443,-250.0,0.00024974,2]
[326738918,1715292632452,-892.17887692,0.00025,2]
[326738919,1715292632463,-342.93404351,0.00025,2]
[326738920,1715292632474,-449.84035098,0.00025,2]
[326738921,1715292632485,-289.3455407,0.00025,2]
[326738922,1715292632496,-464.45744991,0.00025,2]
[326738923,1715292632505,-250.0,0.00025362,2]
[326738924,1715292632514,-250.0,0.0002583,2]
[326738925,1715292632523,-167.68,0.00026049,2]
[326738926,1715292632533,-150.0,0.00027397,2]
[326738927,1715292632542,-225.57,0.00027431,120]
[326738928,1715292632551,-326.12,0.00029,2]
[326738929,1715292632560,-1200.0,0.000296,10]
[326738930,1715292632569,-762.70416996,0.000297,10]
[326738931,1715292632580,-1737.29583004,0.000297,10]
[326738932,1715292632595,-3800.0,0.000298,10]
[326738933,1715292632605,-5100.0,0.000299,10]
[326738934,1715292632614,-941.62589129,0.0003,2]
[326738935,1715292632628,-1297.02003697,0.0003,2]
[326738936,1715292632670,-1047.42676983,0.0003,2]
[326738940,1715292638899,-948.70512469,0.0003,2]
[326738941,1715292638910,-548.09566506,0.0003,2]
[326738942,1715292638933,-87.2511473,0.0003,2]
[326738943,1715292638945,-672.7488527,0.0003,2]
[326738944,1715292638959,-127.2511473,0.0003,2]
[326738945,1715292638970,-158.65674999,0.0003,30]
[326738946,1715292638982,-2462.34325001,0.0003,30]
[326738947,1715292638992,-1394.41824,0.0003,2]
[326738948,1715292639002,-1075.25358781,0.00030036,2]
[326738949,1715292639013,-3500.3496962,0.00030061,2]
[326738950,1715292639023,-10094.25528784,0.00030129,2]
[326738951,1715292639032,-313.25783335,0.00030129,2]
[326738952,1715292639043,-881.9208,0.0003013,2]
[326738953,1715292639052,-310.0,0.0003013,2]
[326738954,1715292639062,-153.47839903,0.0003013,2]
[326738955,1715292639072,-165.36923247,0.0003013,2]
[326738956,1715292639081,-173.31328605,0.0003013,2]
[326738957,1715292639091,-1882.90546163,0.0003013,2]
[326738958,1715292639101,-1000.0,0.0003013,2]
[326738959,1715292639111,-199.10945752,0.00030131,2]
[326738960,1715292639120,-363.73380921,0.00030135,4]
[326738961,1715292639130,-3091.4410551,0.00030135,4]
[326738962,1715292639142,-10908.5587911,0.00030135,4]
[326738963,1715292639153,-500.0,0.00030136,4]
[326738964,1715292639163,-500.0,0.00030136,4]
[326738965,1715292639173,-954.93,0.00030136,4]
[326738966,1715292639183,-500.0,0.00030136,4]
[326738967,1715292639193,-604.45,0.00030136,4]
[326738968,1715292639203,-8571.14,0.00030136,4]
[326738969,1715292639212,-500.0,0.00030136,4]
[326738970,1715292639222,-1513.43,0.00030136,4]
[326738971,1715292639232,-500.0,0.00030136,4]
[326738972,1715292639242,-500.0,0.00030136,4]
[326738973,1715292639252,-500.0,0.00030136,4]
[326738974,1715292639262,-4027.93,0.00030136,4]
[326738975,1715292639272,-500.0,0.00030136,4]
[326738976,1715292639281,-3687.56,0.00030136,4]
[326738977,1715292639291,-1465.12,0.00030136,4]
[326738978,1715292639301,-500.0,0.00030136,4]
[326738979,1715292639823,-17004.70435944,0.00030136,4]
[326738982,1715292641850,-175.58,0.00029237,2]
[326738983,1715292641860,-230.66944498,0.00030136,4]
[326738984,1715292641876,-1300.0,0.00030136,4]
[326738985,1715292641888,-605.53,0.00030136,4]
[326738986,1715292642317,-347.25029916,0.00030136,4]
[326738987,1715292642329,-3191.34589642,0.00030136,4]
[326738988,1715292642339,-500.0,0.00030136,4]
[326738989,1715292642349,-500.0,0.00030136,4]
[326738990,1715292642359,-500.0,0.00030136,4]
[326738991,1715292642369,-500.0,0.00030136,4]
[326738992,1715292642378,-500.0,0.00030136,4]
[326738993,1715292642388,-500.0,0.00030136,4]
[326738994,1715292642398,-2608.69,0.00030136,4]
[326738995,1715292642407,-1380.35,0.00030136,4]
[326738996,1715292642417,-625.31,0.00030136,4]
[326738997,1715292642426,-194.30410358,0.00030136,4]
[326738998,1715292642438,-305.69589642,0.00030136,4]
[326738999,1715292642448,-1768.29,0.00030136,4]
[326739000,1715292642458,-500.0,0.00030136,4]
[326739001,1715292642468,-642.92,0.00030136,4]
[326739002,1715292642478,-500.0,0.00030136,4]
[326739003,1715292642487,-2467.61,0.00030136,4]
[326739004,1715292642497,-500.0,0.00030136,4]
[326739005,1715292642505,-524.7,0.00030136,4]
[326739006,1715292642515,-500.0,0.00030136,4]
[326739007,1715292642524,-880.02,0.00030136,4]
[326739008,1715292642534,-1697.57,0.00030136,4]
[326739009,1715292642543,-500.0,0.00030136,4]
[326739010,1715292642553,-1348.84,0.00030136,4]
[326739011,1715292642562,-758.76,0.00030136,4]
[326739012,1715292642571,-3725.53,0.00030136,4]
[326739013,1715292642581,-500.0,0.00030136,4]
[326739014,1715292642595,-500.0,0.00030136,4]
[326739015,1715292642604,-4834.41,0.00030136,4]
[326739016,1715292642614,-500.0,0.00030136,4]
[326739017,1715292642634,-1533.02,0.00030136,4]
[326739018,1715292642646,-500.0,0.00030136,4]
[326739019,1715292642656,-500.0,0.00030136,4]
[326739020,1715292642668,-500.0,0.00030136,4]
[326739021,1715292642678,-1321.78,0.00030136,4]
[326739022,1715292642688,-585.0,0.00030136,4]
[326739023,1715292642699,-987.16,0.00030136,4]
[326739024,1715292642709,-500.0,0.00030136,4]
[326739025,1715292642719,-3460.09,0.00030136,4]
[326739026,1715292642729,-500.0,0.00030136,4]
[326739027,1715292642739,-3897.14,0.00030136,4]
[326739028,1715292642749,-500.0,0.00030136,4]
[326739029,1715292642760,-1249.47,0.00030136,4]
[326739030,1715292642770,-500.0,0.00030136,4]
[326739031,1715292642780,-562.42723574,0.00030136,4]
[326739032,1715292642790,-1624.00298285,0.00030136,4]
[326739049,1715292643454,-207.06147927,0.00030135,4]
[326739050,1715292643464,-1186.71701715,0.00030136,4]
[326739051,1715292643474,-500.0,0.00030136,4]
[326739052,1715292643484,-500.0,0.00030136,4]
[326739053,1715292643494,-1562.9,0.00030136,4]
[326739054,1715292643503,-562.85,0.00030136,4]
[326739055,1715292643514,-819.43183958,0.00030136,4]
[326739056,1715292643525,-419.86816042,0.00030136,4]
[326739057,1715292643535,-3047.18,0.00030136,4]
[326739058,1715292643546,-1124.45,0.00030136,4]
[326739059,1715292643555,-716.37,0.00030136,4]
[326739060,1715292643564,-500.0,0.00030136,4]
[326739061,1715292643573,-3041.26,0.00030136,4]
[326739062,1715292643585,-1177.29,0.00030136,4]
[326739063,1715292643595,-500.0,0.00030136,4]
[326739064,1715292643604,-1288.85,0.00030136,4]
[326739065,1715292643613,-500.0,0.00030136,4]
[326739066,1715292643623,-2203.2,0.00030136,4]
[326739067,1715292643633,-500.0,0.00030136,4]
[326739068,1715292643642,-1265.33,0.00030136,4]
[326739069,1715292643652,-498.9544624,0.00030136,4]
[326739070,1715292643662,-3569.35,0.00030136,4]
[326739071,1715292643672,-500.0,0.00030136,4]
[326739072,1715292643681,-910.31,0.00030136,4]
[326739073,1715292643690,-1527.65,0.00030136,4]
[326739074,1715292643699,-500.0,0.00030136,4]
[326739075,1715292643709,-1523.6,0.00030136,4]
[326739076,1715292643718,-500.0,0.00030136,4]
[326739077,1715292643727,-2912.4,0.00030136,4]
[326739078,1715292643736,-1460.71,0.00030136,4]
[326739079,1715292643745,-1742.56,0.00030136,4]
[326739080,1715292643755,-500.0,0.00030136,4]
[326739081,1715292643764,-500.0,0.00030136,4]
[326739082,1715292643774,-500.0,0.00030136,4]
[326739083,1715292643783,-638.54519303,0.00030136,4]
[326739084,1715292643795,-755.78480697,0.00030136,4]
[326739085,1715292643804,-500.0,0.00030136,4]
[326739086,1715292643922,-1036.84,0.00030136,4]
[326739087,1715292643932,-500.0,0.00030136,4]
[326739088,1715292643942,-541.45,0.00030136,4]
[326739089,1715292643953,-500.0,0.00030136,4]
[326739090,1715292643963,-500.0,0.00030136,4]
[326739091,1715292643972,-500.0,0.00030136,4]
[326739092,1715292643982,-8623.28,0.00030136,4]
[326739093,1715292643991,-1144.64,0.00030136,4]
[326739094,1715292644001,-500.0,0.00030136,4]
[326739095,1715292644011,-1005.39,0.00030136,4]
[326739096,1715292644021,-500.0,0.00030136,4]
[326739097,1715292644030,-8535.51326356,0.00030136,4]
[326739098,1715292644041,-3219.39896456,0.00030136,4]
[326739099,1715292644053,-5607.57055296,0.00030136,4]
[326739100,1715292644064,-361.82594863,0.00030136,4]
[326739101,1715292644076,-453.0,0.00030136,4]
[326739102,1715292644186,-1558.35,0.00030136,4]
[326739103,1715292644197,-2573.04851832,0.00030136,4]
[326739104,1715292644208,-1300.50255762,0.00030136,4]
[326739105,1715292644220,-301.60400004,0.00030136,4]
[326739106,1715292644232,-630.87041203,0.00030136,4]
[326739107,1715292646349,-5625.89578228,0.00030136,4]
[326739108,1715292646358,-500.0,0.00030136,4]
[326739109,1715292646367,-1377.35,0.00030136,4]
[326739110,1715292646377,-1650.66,0.00030136,4]
[326739112,1715292646386,-500.0,0.00030136,4]
[326739113,1715292646395,-500.0,0.00030136,4]
[326739114,1715292646405,-500.0,0.00030136,4]
[326739115,1715292646415,-500.0,0.00030136,4]
[326739116,1715292646424,-1071.36,0.00030136,4]
[326739117,1715292646433,-940.11,0.00030136,4]
[326739118,1715292646442,-500.0,0.00030136,4]
[326739119,1715292646451,-1638.196767,0.00030136,4]
[326739124,1715292668189,947.30669165,0.00011899,2]
[326739133,1715292731681,-1000.0,0.00011899,2]
[326739147,1715293832317,-401.11099741,0.00011881,2]
[326739148,1715293832327,-536.95226347,0.00011881,2]
[326739149,1715293832337,-937.04418648,0.00011882,2]
[326739153,1715293832534,-281.63428196,0.00011882,2]
[326739154,1715293832546,-377.14468412,0.00011882,2]
[326739155,1715293832559,-402.47498312,0.00011882,2]
[326739156,1715293832568,-84.45501688,0.00011899,2]
[326739157,1715293832579,-1653.54478479,0.00011899,2]
[326739158,1715293832591,-1713.30000046,0.00011899,2]
[326739172,1715293838175,-1573.41555,0.00011899,2]
[326739193,1715293838378,-1814.56851,0.00011899,2]
[326739210,1715293838559,-400.0,0.00011899,2]
[326739212,1715293838570,-2005.27742039,0.00011899,2]
[326739241,1715293841164,-7343.65403522,0.00011899,2]
[326739242,1715293841175,-560.13940762,0.00011899,2]
[326739243,1715293841184,-11451.19380022,0.00012,2]
[326739244,1715293841196,-150.0,0.00012897,2]
[326739245,1715293841205,-150.0,0.00012897,2]
[326739246,1715293841215,-210.0,0.00014187,2]
[326739247,1715293841225,-3024.88433628,0.00014995,2]
[326739248,1715293841234,-618.36792039,0.00015,2]
[326739249,1715293841244,-500.0,0.000185,2]
[326739250,1715293841253,-163.14,0.00019178,2]
[326739251,1715293841262,-168.71,0.00019178,2]
[326739252,1715293841271,-591.0,0.000203,2]
[326739253,1715293841280,-208.6,0.00023959,5]
[326739254,1715293841290,-1270.59201251,0.00025,2]
[326739255,1715293841299,-197.5,0.00025,2]
[326739256,1715293841308,-13369.0,0.00025163,2]
[326739257,1715293841318,-250.0,0.000253,2]
[326739258,1715293841327,-400.0,0.00025315,120]
[326739259,1715293841336,-250.0,0.00025351,2]
[326739260,1715293841346,-250.0,0.0002541,2]
[326739261,1715293841357,-627.25,0.00025516,2]
[326739262,1715293841366,-150.75,0.00025557,120]
[326739263,1715293841375,-208.6,0.00025599,7]
[326739264,1715293841385,-500.0,0.0002562,2]
[326739265,1715293841394,-250.08,0.00025664,2]
[326739266,1715293841403,-175.58,0.00025827,2]
[326739267,1715293841412,-2000.0,0.0002608,2]
[326739268,1715293841422,-208.6,0.00027239,7]
[326739269,1715293841431,-800.0,0.00027673,2]
[326739270,1715293841440,-250.08,0.00028404,2]
[326739271,1715293841450,-400.0,0.00028479,120]
[326739272,1715293841460,-208.6,0.00028879,7]
[326739273,1715293841470,-178.57,0.0002898,15]
[326739274,1715293841480,-150.5,0.0002899,15]
[326739275,1715293841491,-1100.0,0.000295,10]
[326739276,1715293841500,-2300.0,0.000296,10]
[326739277,1715293841511,-2585.154537,0.000296,2]
[326739278,1715293841522,-3500.0,0.000297,10]
[326739279,1715293841532,-4700.0,0.000298,10]
[326739280,1715293841541,-5800.0,0.000299,10]
[326739281,1715293841551,-1560.65973711,0.00029905,2]
[326739282,1715293841561,-967.72822902,0.00030036,2]
[326739283,1715293841571,-1500.0,0.000301,2]
[326739284,1715293841583,-800.0,0.0003011,2]
[326739285,1715293841594,-616.82,0.0003011,2]
[326739286,1715293841603,-313.25783335,0.00030127,2]
[326739287,1715293841612,-165.36923245,0.00030128,2]
[326739288,1715293841622,-2830.82517206,0.00030128,2]
[326739289,1715293841634,-310.37254768,0.00030129,4]
[326739290,1715293841644,-4270.46641923,0.00030134,4]
[326739291,1715293841653,-262.62820491,0.00030134,4]
[326739292,1715293841663,-363.81807592,0.00030134,4]
[326739293,1715293841673,-3876.01243216,0.00030134,2]
[326739295,1715293841682,-2180.17335597,0.00030134,4]
[326739297,1715293841693,-1678.54469435,0.00030134,4]
[326739299,1715293841703,-1635.11088042,0.00030134,4]
[326739301,1715293841714,-481.81452759,0.00030134,4]
[326739303,1715293841724,-162.26289943,0.00030134,4]
[326739304,1715293841733,-4417.68693745,0.00030134,4]
[326739305,1715293841743,-782.13638794,0.00030134,2]
[326739306,1715293841752,-1246.19492949,0.00030134,4]
[326739307,1715293841762,-378.89600529,0.00030134,4]
[326739308,1715293841771,-167.58743393,0.00030134,4]
[326739309,1715293841781,-523.10872872,0.00030134,60]
[326739310,1715293841792,-1069.79909681,0.00030134,4]
[326739311,1715293841801,-17278.32405298,0.00030134,4]
[326739312,1715293841811,-2324.71738316,0.00030135,4]
[326739313,1715293841821,-370.50415995,0.00030135,4]
[326739314,1715293841831,-164.87123951,0.00030136,4]
[326739315,1715293841840,-1607.92618494,0.00030136,4]
[326739316,1715293841850,-500.0,0.00030136,4]
[326739317,1715293841859,-776.52,0.00030136,4]
[326739318,1715293841869,-500.0,0.00030136,4]
[326739319,1715293841879,-500.0,0.00030136,4]
[326739320,1715293841889,-500.0,0.00030136,4]
[326739321,1715293841899,-500.0,0.00030136,4]
[326739322,1715293841909,-550.06,0.00030136,4]
[326739323,1715293841919,-500.0,0.00030136,4]
[326739324,1715293841928,-2000.0,0.00030136,2]
[326739325,1715293841938,-722.94,0.00030136,4]
[326739326,1715293841949,-851.14,0.00030136,4]
[326739327,1715293841962,-200.0,0.00030136,2]
[326739328,1715293841972,-500.0,0.00030136,4]
[326739329,1715293841982,-1051.73,0.00030136,4]
[326739330,1715293841992,-779.61,0.00030136,4]
[326739331,1715293842370,-500.0,0.00030136,4]
[326739332,1715293842380,-500.0,0.00030136,4]
[326739333,1715293842390,-764.66,0.00030136,4]
[326739334,1715293842400,-500.0,0.00030136,4]
[326739335,1715293842409,-500.0,0.00030136,4]
[326739336,1715293842419,-500.0,0.00030136,4]
[326739337,1715293842428,-500.0,0.00030136,4]
[326739338,1715293842437,-500.0,0.00030136,2]
[326739339,1715293842447,-500.0,0.00030136,4]
[326739340,1715293842456,-500.0,0.00030136,4]
[326739341,1715293842466,-1054.67,0.00030136,4]
[326739342,1715293842476,-500.0,0.00030136,4]
[326739343,1715293842485,-663.41,0.00030136,4]
[326739344,1715293842494,-580.78,0.00030136,4]
[326739345,1715293842504,-573.15,0.00030136,4]
[326739346,1715293842513,-500.0,0.00030136,4]
[326739347,1715293842522,-500.0,0.00030136,4]
[326739348,1715293842532,-531.77,0.00030136,4]
[326739349,1715293842541,-500.0,0.00030136,4]
[326739350,1715293842552,-781.07,0.00030136,4]
[326739351,1715293842561,-500.0,0.00030136,4]
[326739352,1715293842571,-500.0,0.00030136,4]
[326739353,1715293842580,-500.0,0.00030136,4]
[326739354,1715293842589,-500.0,0.00030136,4]
[326739355,1715293842599,-500.0,0.00030136,4]
[326739356,1715293842610,-500.0,0.00030136,4]
[326739357,1715293842621,-613.88,0.00030136,4]
[326739358,1715293842630,-500.0,0.00030136,4]
[326739359,1715293842640,-500.0,0.00030136,4]
[326739360,1715293842649,-890.68,0.00030136,4]
[326739361,1715293842659,-500.0,0.00030136,4]
[326739362,1715293842669,-500.0,0.00030136,4]
[326739363,1715293842679,-2000.0,0.00030136,2]
[326739364,1715293842688,-200.0,0.00030136,2]
[326739365,1715293842699,-1694.75,0.00030136,4]
[326739366,1715293842709,-1091.31,0.00030136,4]
[326739367,1715293842719,-1040.68,0.00030136,4]
[326739368,1715293842729,-1788.86,0.00030136,4]
[326739369,1715293842741,-648.93654396,0.00030136,4]
[326739370,1715293842752,-5000.0,0.00030136,4]
[326739371,1715293842762,-500.0,0.00030136,4]
[326739372,1715293842772,-916.73,0.00030136,4]
[326739373,1715293842782,-1301.4,0.00030136,4]
[326739374,1715293842792,-591.82,0.00030136,4]
[326739375,1715293842802,-1721.76,0.00030136,4]
[326739376,1715293842812,-910.65,0.00030136,4]
[326739377,1715293842823,-2583.35,0.00030136,4]
[326739378,1715293842833,-1555.37,0.00030136,4]
[326739379,1715293842843,-1342.3,0.00030136,4]
[326739380,1715293842852,-1753.3875,0.00030136,2]
[326739381,1715293842862,-150.8,0.00030217,2]
[326739382,1715293842871,-1000.0,0.00030219,4]
[326739383,1715293842880,-170.54426971,0.0003022,2]
[326739384,1715293842891,-1455.22494791,0.0003022,2]
[326739385,1715293842900,-2673.5977015,0.0003022,2]
[326739386,1715293842910,-284.06114088,0.0003022,2]
[326739387,1715293842920,-3382.64,0.00030226,4]
[326739388,1715293842930,-2718.02,0.00030226,4]
[326739389,1715293842939,-506.2,0.00030226,4]
[326739390,1715293842948,-891.39,0.00030226,4]
[326739391,1715293842960,-1569.4,0.00030226,4]
[326739392,1715293842971,-500.0,0.00030226,4]
[326739393,1715293842982,-4759.82,0.00030226,4]
[326739394,1715293842991,-2991.92,0.00030226,4]
[326739395,1715293843001,-2310.69,0.00030226,4]
[326739396,1715293843011,-9157.79,0.00030226,4]
[326739397,1715293843020,-11668.31,0.00030226,4]
[326739398,1715293843030,-2492.19,0.00030226,4]
[326739399,1715293843040,-4663.6,0.00030226,4]
[326739400,1715293843051,-2156.52,0.00030226,4]
[326739401,1715293843061,-9574.79,0.00030226,4]
[326739402,1715293843072,-3740.02,0.00030226,4]
[326739403,1715293843083,-5897.06,0.00030226,4]
[326739404,1715293843092,-4425.99,0.00030226,4]
[326739405,1715293843102,-3760.22,0.00030226,4]
[326739406,1715293843111,-1753.74,0.00030226,4]
[326739407,1715293843121,-649.75,0.00030226,4]
[326739408,1715293843130,-500.0,0.00030226,4]
[326739409,1715293843140,-938.48,0.00030226,4]
[326739410,1715293843149,-1614.47,0.00030226,4]
[326739411,1715293843159,-3432.65,0.00030226,4]
[326739412,1715293843168,-555.71,0.00030226,4]
[326739413,1715293843178,-4822.78,0.00030226,4]
[326739414,1715293843187,-640.14,0.00030226,4]
[326739415,1715293843197,-660.29,0.00030226,4]
[326739416,1715293843207,-2336.48,0.00030226,4]
[326739417,1715293843216,-500.0,0.00030226,4]
[326739419,1715293843227,-500.0,0.00030226,4]
[326739421,1715293843236,-500.0,0.00030226,4]
[326739423,1715293843246,-743.72,0.00030226,4]
[326739425,1715293843256,-500.0,0.00030226,4]
[326739427,1715293843275,-207.10980669,0.00030227,4]
[326739429,1715293843284,-3075.87418959,0.00030227,10]
[326739430,1715293843294,-281.57953583,0.00030227,3]
[326739431,1715293843304,-1741.56006249,0.00030227,4]
[326739432,1715293843314,-155.0,0.00030227,4]
[326739433,1715293843324,-2322.71,0.00030227,4]
[326739434,1715293843333,-500.0,0.00030227,4]
[326739435,1715293843343,-666.9,0.00030227,4]
[326739436,1715293843352,-1380.3,0.00030227,4]
[326739437,1715293843362,-1318.35,0.00030227,2]
[326739438,1715293843372,-573.49,0.00030227,4]
[326739439,1715293843382,-533.88763688,0.00030227,2]
[326739440,1715293843392,-500.0,0.00030227,4]
[326739441,1715293843402,-1287.6,0.00030227,4]
[326739442,1715293843412,-500.0,0.00030227,4]
[326739443,1715293843423,-1429.91,0.00030227,4]
[326739444,1715293843432,-500.0,0.00030227,4]
[326739445,1715293843442,-2570.93,0.00030227,4]
[326739446,1715293843451,-2902.44,0.00030227,4]
[326739447,1715293843461,-1918.92,0.00030227,4]
[326739448,1715293843471,-500.0,0.00030227,4]
[326739449,1715293843481,-1432.19,0.00030227,4]
[326739450,1715293843491,-500.0,0.00030227,4]
[326739451,1715293843502,-1058.21,0.00030227,4]
[326739452,1715293843511,-20000.0,0.00030227,2]
[326739453,1715293843521,-2223.5,0.00030227,4]
[326739454,1715293843531,-603.29001195,0.00030227,4]
[326739455,1715293843540,-2656.28,0.00030227,4]
[326739456,1715293843552,-500.0,0.00030227,4]
[326739457,1715293843563,-1791.98,0.00030227,4]
[326739458,1715293843575,-807.18,0.00030227,4]
[326739459,1715293843585,-500.0,0.00030227,4]
[326739460,1715293843595,-835.57,0.00030227,4]
[326739461,1715293843605,-3374.95,0.00030227,4]
[326739462,1715293843616,-500.0,0.00030227,4]
[326739463,1715293843627,-500.0,0.00030227,4]
[326739464,1715293843637,-500.0,0.00030227,4]
[326739465,1715293843648,-500.0,0.00030227,2]
[326739466,1715293843657,-549.10311725,0.00030227,4]
[326739467,1715293843667,-500.0,0.00030227,4]
[326739468,1715293843677,-915.44,0.00030227,4]
[326739469,1715293843687,-500.0,0.00030227,4]
[326739470,1715293843697,-500.0,0.00030227,4]
[326739471,1715293843707,-508.84976125,0.00030227,4]
[326739472,1715293843717,-771.2,0.00030227,4]
[326739473,1715293843728,-500.0,0.00030227,4]
[326739474,1715293843737,-2482.76,0.00030227,4]
[326739475,1715293843747,-3576.03,0.00030227,4]
[326739476,1715293843756,-500.0,0.00030227,4]
[326739477,1715293843766,-502.40423615,0.00030227,4]
[326739478,1715293843777,-1464.98,0.00030227,4]
[326739479,1715293843786,-500.0,0.00030227,4]
[326739480,1715293843796,-500.0,0.00030227,4]